fUST/lending_fUST_20250120
["ID","MTS","AMOUNT","RATE_DAILY","PERIOD"]
[349667098,1737363062816,-1000.0,0.00022521,2]
[349667099,1737363062833,-1000.0,0.00022521,2]
[349667100,1737363062848,-502.37960217,0.00022521,2]
[349667101,1737363062864,-4878.67711728,0.00022563,2]
[349667102,1737363062879,-25528.3306836,0.0002258,60]
[349667103,1737363062894,-151.0,0.00022602,7]
[349667104,1737363062908,-500.0,0.00022602,3]
[349667105,1737363062923,-500.0,0.00022602,3]
[349667106,1737363062939,-500.0,0.00022602,3]
[349667107,1737363062954,-242.3755499,0.00022602,3]
[349667108,1737363062967,-500.0,0.00022602,3]
[349667109,1737363062982,-500.0,0.00022602,3]
[349667110,1737363062997,-500.0,0.00022602,3]
[349667111,1737363063011,-500.0,0.00022602,3]
[349667112,1737363063026,-500.0,0.00022602,3]
[349667113,1737363063041,-500.0,0.00022602,3]
[349667114,1737363063057,-503.95819072,0.00022602,3]
[349667115,1737363063072,-500.0,0.00022602,3]
[349667116,1737363063087,-1924.65,0.00022602,3]
[349667117,1737363063101,-500.0,0.00022602,3]
[349667118,1737363063117,-500.0,0.00022602,3]
[349667119,1737363063132,-344.78819558,0.00022602,3]
[349667120,1737363063147,-500.0,0.00022602,3]
[349667121,1737363063162,-500.0,0.00022602,3]
[349667122,1737363063256,-500.0,0.00022602,3]
[349667123,1737363063285,-500.0,0.00022602,3]
[349667124,1737363063295,-188.0,0.00022602,2]
[349667125,1737363063305,-500.0,0.00022602,3]
[349667126,1737363063315,-436.62412719,0.00022602,3]
[349667127,1737363063325,-500.0,0.00022602,3]
[349667128,1737363063335,-500.0,0.00022602,3]
[349667129,1737363063344,-500.0,0.00022602,2]
[349667130,1737363063354,-500.0,0.00022602,3]
[349667131,1737363063363,-500.0,0.00022602,3]
[349667132,1737363063374,-500.0,0.00022602,3]
[349667133,1737363063384,-500.0,0.00022602,2]
[349667134,1737363063396,-500.0,0.00022602,3]
[349667135,1737363063407,-801.81,0.00022602,3]
[349667136,1737363063417,-611.87,0.00022602,3]
[349667137,1737363063427,-506.9014578,0.00022602,3]
[349667138,1737363063438,-500.0,0.00022602,3]
[349667139,1737363063448,-200.44460979,0.00022602,2]
[349667140,1737363063458,-702.35,0.00022602,3]
[349667141,1737363063467,-568.89,0.00022602,3]
[349667142,1737363063479,-500.0,0.00022602,3]
[349667143,1737363063490,-705.02,0.00022602,3]
[349667144,1737363063500,-500.0,0.00022602,3]
[349667145,1737363063511,-500.0,0.00022602,3]
[349667146,1737363063521,-500.0,0.00022602,3]
[349667147,1737363063531,-471.32457676,0.00022602,3]
[349667148,1737363063540,-500.0,0.00022602,3]
[349667149,1737363063549,-724.8,0.00022602,3]
[349667150,1737363063560,-500.0,0.00022602,3]
[349667151,1737363063570,-506.66531543,0.00022602,3]
[349667152,1737363063580,-500.0,0.00022602,3]
[349667153,1737363063589,-503.52186362,0.00022602,3]
[349667154,1737363063599,-500.0,0.00022602,3]
[349667155,1737363063608,-500.0,0.00022602,3]
[349667156,1737363063618,-500.0,0.00022602,3]
[349667157,1737363063627,-518.68,0.00022602,3]
[349667158,1737363063636,-500.0,0.00022602,3]
[349667159,1737363063645,-500.0,0.00022602,3]
[349667160,1737363063654,-500.0,0.00022602,3]
[349667161,1737363063663,-500.0,0.00022602,3]
[349667162,1737363063673,-500.0,0.00022602,3]
[349667163,1737363063684,-695.6,0.00022602,3]
[349667164,1737363063693,-500.0,0.00022602,3]
[349667165,1737363063702,-500.0,0.00022602,3]
[349667166,1737363063711,-500.0,0.00022602,3]
[349667167,1737363063721,-500.0,0.00022602,3]
[349667168,1737363063730,-555.03,0.00022602,3]
[349667169,1737363063739,-500.0,0.00022602,3]
[349667170,1737363063749,-500.0,0.00022602,3]
[349667171,1737363063757,-500.0,0.00022602,3]
[349667172,1737363063766,-512.56381128,0.00022602,3]
[349667173,1737363063775,-500.0,0.00022602,3]
[349667174,1737363063785,-500.0,0.00022602,3]
[349667175,1737363063795,-500.0,0.00022602,3]
[349667176,1737363063805,-500.0,0.00022602,3]
[349667177,1737363063815,-500.0,0.00022602,3]
[349667178,1737363063824,-500.0,0.00022602,3]
[349667179,1737363063835,-1920.08,0.00022602,3]
[349667180,1737363063844,-500.0,0.00022602,3]
[349667181,1737363063853,-500.0,0.00022602,3]
[349667182,1737363063862,-1764.79,0.00022602,2]
[349667183,1737363063871,-741.08,0.00022602,3]
[349667184,1737363063881,-500.0,0.00022602,3]
[349667185,1737363063891,-500.0,0.00022602,3]
[349667186,1737363063900,-381.03952581,0.00022602,3]
[349667187,1737363063909,-801.63,0.00022602,3]
[349667188,1737363063919,-500.0,0.00022602,2]
[349667189,1737363063929,-3357.16,0.00022602,3]
[349667190,1737363063939,-500.0,0.00022602,3]
[349667191,1737363063949,-342.65489201,0.00022602,3]
[349667192,1737363063959,-3137.36,0.00022602,3]
[349667193,1737363063969,-500.0,0.00022602,3]
[349667194,1737363063979,-500.0,0.00022602,3]
[349667195,1737363063989,-1224.43,0.00022602,3]
[349667196,1737363063999,-973.75,0.00022602,3]
[349667197,1737363064009,-500.0,0.00022602,3]
[349667198,1737363064019,-1604.98,0.00022602,3]
[349667199,1737363064029,-500.0,0.00022602,3]
[349667200,1737363064039,-500.0,0.00022602,3]
[349667201,1737363064049,-500.0,0.00022602,3]
[349667202,1737363064060,-500.0,0.00022602,3]
[349667203,1737363064070,-500.0,0.00022602,3]
[349667204,1737363064080,-198.03679239,0.00022602,3]
[349667205,1737363064090,-10290.31,0.00022602,3]
[349667206,1737363064101,-500.0,0.00022602,3]
[349667207,1737363064111,-379.47622092,0.00022602,3]
[349667208,1737363064121,-500.0,0.00022602,3]
[349667209,1737363064131,-500.0,0.00022602,3]
[349667210,1737363064141,-500.0,0.00022602,3]
[349667211,1737363064150,-500.0,0.00022602,3]
[349667212,1737363064161,-1504.83,0.00022602,3]
[349667213,1737363064171,-500.0,0.00022602,3]
[349667214,1737363064183,-515.0198878,0.00022602,3]
[349667215,1737363064194,-5310.12,0.00022602,3]
[349667216,1737363064204,-500.0,0.00022602,3]
[349667217,1737363064214,-9119.31,0.00022602,3]
[349667218,1737363064225,-623.93,0.00022602,3]
[349667219,1737363064237,-500.0,0.00022602,3]
[349667220,1737363064249,-500.0,0.00022602,3]
[349667221,1737363064259,-500.0,0.00022602,3]
[349667222,1737363064269,-500.0,0.00022602,3]
[349667223,1737363064279,-500.0,0.00022602,3]
[349667224,1737363064288,-500.0,0.00022602,3]
[349667225,1737363064298,-500.0,0.00022602,3]
[349667226,1737363064308,-2278.86,0.00022602,3]
[349667227,1737363064318,-500.0,0.00022602,3]
[349667228,1737363064328,-1991.91,0.00022602,3]
[349667229,1737363064338,-500.0,0.00022602,3]
[349667230,1737363064348,-500.0,0.00022602,3]
[349667231,1737363064358,-1608.79,0.00022602,3]
[349667232,1737363064368,-500.0,0.00022602,3]
[349667233,1737363064378,-513.88,0.00022602,3]
[349667234,1737363064388,-500.0,0.00022602,3]
[349667235,1737363064398,-500.0,0.00022602,3]
[349667236,1737363064408,-500.0,0.00022602,3]
[349667237,1737363064419,-500.0,0.00022602,3]
[349667238,1737363064429,-1571.57,0.00022602,3]
[349667239,1737363064440,-500.0,0.00022602,3]
[349667240,1737363064518,-500.0,0.00022602,3]
[349667241,1737363064528,-527.02,0.00022602,3]
[349667242,1737363064538,-5281.84,0.00022602,3]
[349667243,1737363064550,-25872.62,0.00022602,3]
[349667244,1737363064561,-500.0,0.00022602,3]
[349667245,1737363064572,-500.0,0.00022602,3]
[349667246,1737363064582,-526.78,0.00022602,3]
[349667247,1737363064593,-219.69252911,0.00022602,2]
[349667248,1737363064603,-500.0,0.00022602,2]
[349667249,1737363064612,-500.0,0.00022602,3]
[349667250,1737363064623,-500.0,0.00022602,2]
[349667251,1737363064632,-564.99,0.00022602,3]
[349667252,1737363064642,-500.0,0.00022602,3]
[349667253,1737363064652,-500.0,0.00022602,3]
[349667254,1737363064662,-500.0,0.00022602,2]
[349667255,1737363064671,-1111.3,0.00022602,3]
[349667256,1737363064683,-500.0,0.00022602,3]
[349667257,1737363064693,-500.0,0.00022602,3]
[349667258,1737363064703,-500.0,0.00022602,3]
[349667259,1737363064712,-8374.84,0.00022602,3]
[349667260,1737363064721,-500.0,0.00022602,3]
[349667261,1737363064731,-262.9,0.00022606,6]
[349667262,1737363064740,-500.0,0.00022606,2]
[349667263,1737363064750,-1006.13151607,0.00022621,2]
[349667264,1737363064759,-558.23450394,0.00022621,2]
[349667265,1737363064769,-1000.0,0.00022621,2]
[349667266,1737363064779,-1000.0,0.00022621,2]
[349667267,1737363064789,-1000.0,0.00022621,2]
[349667268,1737363064798,-627.73511595,0.00022662,2]
[349667269,1737363064807,-3970.01229164,0.000227,5]
[349667270,1737363064817,-1000.0,0.00022721,2]
[349667271,1737363064827,-1000.0,0.00022721,2]
[349667272,1737363064836,-678.9601404,0.00022721,2]
[349667273,1737363064846,-1000.0,0.00022721,2]
[349667274,1737363064855,-500.0,0.00022739,3]
[349667275,1737363064864,-500.0,0.00022739,3]
[349667276,1737363064874,-500.0,0.00022739,3]
[349667277,1737363064883,-500.0,0.00022739,3]
[349667278,1737363064893,-500.0,0.00022739,3]
[349667279,1737363064902,-500.0,0.00022739,3]
[349667280,1737363064911,-500.0,0.00022739,3]
[349667281,1737363064920,-500.0,0.00022739,3]
[349667282,1737363064930,-500.0,0.00022739,3]
[349667283,1737363064939,-500.0,0.00022739,3]
[349667284,1737363064949,-1924.65,0.00022739,3]
[349667285,1737363064959,-500.0,0.00022739,3]
[349667286,1737363064968,-500.0,0.00022739,3]
[349667287,1737363064977,-500.0,0.00022739,3]
[349667288,1737363064987,-500.0,0.00022739,3]
[349667289,1737363064996,-188.0,0.00022739,2]
[349667290,1737363065006,-500.0,0.00022739,3]
[349667291,1737363065016,-500.0,0.00022739,3]
[349667292,1737363065025,-500.0,0.00022739,3]
[349667293,1737363065034,-500.0,0.00022739,3]
[349667294,1737363065043,-500.0,0.00022739,2]
[349667295,1737363065053,-507.79871921,0.00022739,3]
[349667296,1737363065062,-801.81,0.00022739,3]
[349667297,1737363065071,-611.87,0.00022739,3]
[349667298,1737363065080,-504.47,0.00022739,3]
[349667299,1737363065089,-702.35,0.00022739,3]
[349667300,1737363065098,-568.89,0.00022739,3]
[349667301,1737363065107,-500.0,0.00022739,3]
[349667302,1737363065116,-705.02,0.00022739,3]
[349667303,1737363065125,-500.0,0.00022739,3]
[349667304,1737363065134,-500.0,0.00022739,3]
[349667305,1737363065143,-500.0,0.00022739,3]
[349667306,1737363065153,-500.0,0.00022739,3]
[349667307,1737363065162,-724.8,0.00022739,3]
[349667308,1737363065171,-500.0,0.00022739,3]
[349667309,1737363065182,-500.0,0.00022739,3]
[349667310,1737363065191,-500.0,0.00022739,3]
[349667311,1737363065201,-500.0,0.00022739,3]
[349667312,1737363065211,-500.0,0.00022739,3]
[349667313,1737363065220,-500.0,0.00022739,3]
[349667314,1737363065230,-500.0,0.00022739,3]
[349667315,1737363065239,-500.0,0.00022739,3]
[349667316,1737363065249,-500.0,0.00022739,3]
[349667317,1737363065258,-695.6,0.00022739,3]
[349667318,1737363065268,-500.0,0.00022739,3]
[349667319,1737363065277,-500.0,0.00022739,3]
[349667320,1737363065287,-500.0,0.00022739,3]
[349667321,1737363065296,-500.0,0.00022739,3]
[349667322,1737363065306,-555.03,0.00022739,3]
[349667323,1737363065315,-500.0,0.00022739,3]
[349667324,1737363065324,-500.0,0.00022739,3]
[349667325,1737363065333,-500.0,0.00022739,3]
[349667326,1737363065342,-434.78242472,0.00022739,3]
[349667327,1737363065352,-514.47563039,0.00022739,3]
[349667328,1737363065361,-500.0,0.00022739,3]
[349667329,1737363065371,-500.0,0.00022739,3]
[349667330,1737363065380,-500.0,0.00022739,3]
[349667331,1737363065390,-500.0,0.00022739,3]
[349667332,1737363065399,-1920.08,0.00022739,3]
[349667333,1737363065408,-500.0,0.00022739,3]
[349667334,1737363065418,-173.20697325,0.00022739,3]
[349667335,1737363065427,-1764.79,0.00022739,2]
[349667336,1737363065440,-741.08,0.00022739,3]
[349667337,1737363065450,-500.0,0.00022739,3]
[349667338,1737363065459,-500.0,0.00022739,3]
[349667339,1737363065469,-801.63,0.00022739,3]
[349667340,1737363065482,-3357.16,0.00022739,3]
[349667341,1737363065492,-500.0,0.00022739,3]
[349667342,1737363065501,-3137.36,0.00022739,3]
[349667343,1737363065511,-500.0,0.00022739,3]
[349667344,1737363065521,-500.0,0.00022739,3]
[349667345,1737363065531,-1224.43,0.00022739,3]
[349667346,1737363065543,-973.75,0.00022739,3]
[349667347,1737363065555,-465.15946247,0.00022739,3]
[349667348,1737363065626,-1604.98,0.00022739,3]
[349667349,1737363065635,-358.97568678,0.00022739,3]
[349667350,1737363065645,-500.0,0.00022739,3]
[349667351,1737363065654,-500.0,0.00022739,3]
[349667352,1737363065664,-500.0,0.00022739,3]
[349667353,1737363065673,-500.0,0.00022739,3]
[349667354,1737363065683,-10290.31,0.00022739,3]
[349667355,1737363065692,-500.0,0.00022739,3]
[349667356,1737363065701,-500.0,0.00022739,3]
[349667357,1737363065711,-500.0,0.00022739,3]
[349667358,1737363065720,-500.0,0.00022739,3]
[349667359,1737363065730,-500.0,0.00022739,3]
[349667360,1737363065740,-1504.83,0.00022739,3]
[349667361,1737363065749,-500.0,0.00022739,3]
[349667362,1737363065759,-5310.12,0.00022739,3]
[349667363,1737363065770,-500.0,0.00022739,3]
[349667364,1737363065779,-9119.31,0.00022739,3]
[349667365,1737363065790,-623.93,0.00022739,3]
[349667366,1737363065799,-500.0,0.00022739,3]
[349667367,1737363065809,-500.0,0.00022739,3]
[349667368,1737363065819,-500.0,0.00022739,3]
[349667369,1737363065828,-500.0,0.00022739,3]
[349667370,1737363065838,-500.0,0.00022739,3]
[349667371,1737363065847,-500.0,0.00022739,3]
[349667372,1737363065860,-2278.86,0.00022739,3]
[349667373,1737363065870,-1991.91,0.00022739,3]
[349667374,1737363065879,-500.0,0.00022739,3]
[349667375,1737363065896,-1608.79,0.00022739,3]
[349667376,1737363065917,-500.0,0.00022739,3]
[349667377,1737363065933,-513.88,0.00022739,3]
[349667378,1737363065942,-500.0,0.00022739,3]
[349667379,1737363065953,-500.0,0.00022739,3]
[349667380,1737363065962,-500.0,0.00022739,3]
[349667381,1737363065972,-500.0,0.00022739,3]
[349667382,1737363065982,-1571.57,0.00022739,3]
[349667383,1737363065992,-500.0,0.00022739,3]
[349667384,1737363066002,-500.0,0.00022739,3]
[349667385,1737363066011,-527.02,0.00022739,3]
[349667386,1737363066021,-5281.84,0.00022739,3]
[349667387,1737363066030,-500.0,0.00022739,3]
[349667388,1737363066039,-500.0,0.00022739,3]
[349667389,1737363066049,-25872.62,0.00022739,3]
[349667390,1737363066058,-526.78,0.00022739,3]
[349667391,1737363066067,-507.72343436,0.00022739,3]
[349667392,1737363066076,-564.99,0.00022739,3]
[349667393,1737363066085,-508.23934034,0.00022739,3]
[349667394,1737363066095,-500.0,0.00022739,3]
[349667395,1737363066104,-1111.3,0.00022739,3]
[349667396,1737363066114,-500.0,0.00022739,3]
[349667397,1737363066124,-500.0,0.00022739,3]
[349667398,1737363066134,-500.0,0.00022739,3]
[349667399,1737363066144,-8374.84,0.00022739,3]
[349667400,1737363066153,-4878.67711728,0.00022761,2]
[349667401,1737363066162,-262.9,0.00022811,6]
[349667402,1737363066172,-152.0,0.00022831,2]
[349667403,1737363066184,-152.0,0.00022831,2]
[349667404,1737363066193,-152.0,0.00022831,2]
[349667405,1737363066203,-152.0,0.00022831,2]
[349667406,1737363066213,-152.0,0.00022831,2]
[349667407,1737363066222,-152.0,0.00022831,2]
[349667408,1737363066232,-205.63,0.00022831,2]
[349667409,1737363066242,-63889.80996886,0.0002287,2]
[349667410,1737363066252,-814.26400161,0.00022876,2]
[349667411,1737363066261,-926.63024119,0.00022876,2]
[349667412,1737363066271,-500.0,0.00022876,2]
[349667413,1737363066280,-500.0,0.00022876,2]
[349667414,1737363066290,-901.99621455,0.00022876,2]
[349667415,1737363066299,-500.0,0.00022876,3]
[349667416,1737363066308,-500.0,0.00022876,3]
[349667417,1737363066318,-500.0,0.00022876,3]
[349667418,1737363066327,-500.0,0.00022876,3]
[349667419,1737363066336,-500.0,0.00022876,3]
[349667420,1737363066346,-500.0,0.00022876,3]
[349667421,1737363066355,-500.0,0.00022876,3]
[349667422,1737363066365,-500.0,0.00022876,3]
[349667423,1737363066374,-500.0,0.00022876,3]
[349667424,1737363066384,-1924.65,0.00022876,3]
[349667425,1737363066393,-507.1591329,0.00022876,3]
[349667426,1737363066402,-500.0,0.00022876,3]
[349667427,1737363066413,-500.0,0.00022876,3]
[349667428,1737363066423,-500.0,0.00022876,3]
[349667429,1737363066433,-188.0,0.00022876,2]
[349667430,1737363066442,-500.0,0.00022876,3]
[349667431,1737363066452,-500.0,0.00022876,3]
[349667432,1737363066461,-559.57409278,0.00022876,3]
[349667433,1737363066473,-500.0,0.00022876,3]
[349667434,1737363066482,-500.0,0.00022876,2]
[349667435,1737363066492,-801.81,0.00022876,3]
[349667436,1737363066502,-611.87,0.00022876,3]
[349667437,1737363066511,-702.35,0.00022876,3]
[349667438,1737363066521,-568.89,0.00022876,3]
[349667439,1737363066530,-436.42360447,0.00022876,3]
[349667440,1737363066539,-705.02,0.00022876,3]
[349667441,1737363066548,-500.0,0.00022876,3]
[349667442,1737363066558,-500.0,0.00022876,3]
[349667443,1737363066568,-229.29651076,0.00022876,3]
[349667444,1737363066577,-724.8,0.00022876,3]
[349667445,1737363066586,-500.0,0.00022876,3]
[349667446,1737363066595,-500.0,0.00022876,3]
[349667447,1737363066663,-500.0,0.00022876,3]
[349667448,1737363066673,-500.0,0.00022876,3]
[349667449,1737363066683,-500.0,0.00022876,3]
[349667450,1737363066693,-500.0,0.00022876,3]
[349667451,1737363066702,-500.0,0.00022876,3]
[349667452,1737363066711,-500.0,0.00022876,3]
[349667453,1737363066721,-500.0,0.00022876,3]
[349667454,1737363066730,-695.6,0.00022876,3]
[349667455,1737363066741,-515.84302068,0.00022876,3]
[349667456,1737363066751,-500.0,0.00022876,3]
[349667457,1737363066760,-500.0,0.00022876,3]
[349667458,1737363066769,-500.0,0.00022876,3]
[349667459,1737363066778,-555.03,0.00022876,3]
[349667460,1737363066787,-285.99795232,0.00022876,3]
[349667461,1737363066797,-500.0,0.00022876,3]
[349667462,1737363066806,-500.0,0.00022876,3]
[349667463,1737363066816,-500.0,0.00022876,3]
[349667464,1737363066825,-534.65213496,0.00022876,3]
[349667465,1737363066834,-500.0,0.00022876,3]
[349667466,1737363066844,-500.0,0.00022876,3]
[349667467,1737363066853,-1920.08,0.00022876,3]
[349667468,1737363066862,-500.0,0.00022876,3]
[349667469,1737363066871,-1764.79,0.00022876,2]
[349667470,1737363066880,-741.08,0.00022876,3]
[349667471,1737363066889,-500.0,0.00022876,3]
[349667472,1737363066898,-500.0,0.00022876,3]
[349667473,1737363066907,-801.63,0.00022876,3]
[349667474,1737363066916,-3357.16,0.00022876,3]
[349667475,1737363066926,-500.0,0.00022876,3]
[349667476,1737363066937,-3137.36,0.00022876,3]
[349667477,1737363066946,-500.0,0.00022876,3]
[349667478,1737363066955,-586.97048678,0.00022876,3]
[349667479,1737363066964,-1224.43,0.00022876,3]
[349667480,1737363066974,-973.75,0.00022876,3]
[349667481,1737363066984,-1604.98,0.00022876,3]
[349667482,1737363066993,-500.0,0.00022876,3]
[349667483,1737363067002,-500.0,0.00022876,3]
[349667484,1737363067012,-500.0,0.00022876,3]
[349667485,1737363067021,-500.0,0.00022876,3]
[349667486,1737363067030,-10290.31,0.00022876,3]
[349667487,1737363067039,-500.0,0.00022876,3]
[349667488,1737363067048,-500.0,0.00022876,3]
[349667489,1737363067059,-500.0,0.00022876,3]
[349667490,1737363067068,-1504.83,0.00022876,3]
[349667491,1737363067077,-500.0,0.00022876,3]
[349667492,1737363067090,-5310.12,0.00022876,3]
[349667493,1737363067110,-500.0,0.00022876,3]
[349667494,1737363067125,-9119.31,0.00022876,3]
[349667495,1737363067146,-623.93,0.00022876,3]
[349667496,1737363067165,-500.0,0.00022876,3]
[349667497,1737363067181,-500.0,0.00022876,3]
[349667498,1737363067200,-500.0,0.00022876,3]
[349667499,1737363067216,-500.0,0.00022876,3]
[349667500,1737363067231,-500.0,0.00022876,3]
[349667501,1737363067249,-500.0,0.00022876,3]
[349667502,1737363067268,-1991.91,0.00022876,3]
[349667503,1737363067286,-500.0,0.00022876,3]
[349667504,1737363067298,-2278.86,0.00022876,3]
[349667505,1737363067318,-1608.79,0.00022876,3]
[349667506,1737363067332,-500.0,0.00022876,3]
[349667507,1737363067348,-513.88,0.00022876,3]
[349667508,1737363067361,-500.0,0.00022876,3]
[349667509,1737363067376,-500.0,0.00022876,3]
[349667510,1737363067391,-500.0,0.00022876,3]
[349667511,1737363067407,-500.0,0.00022876,3]
[349667512,1737363067421,-1571.57,0.00022876,3]
[349667513,1737363067436,-500.0,0.00022876,3]
[349667514,1737363067451,-500.0,0.00022876,3]
[349667515,1737363067466,-527.02,0.00022876,3]
[349667516,1737363067483,-5281.84,0.00022876,3]
[349667517,1737363067497,-500.0,0.00022876,3]
[349667518,1737363067513,-515.23345343,0.00022876,3]
[349667519,1737363067528,-25872.62,0.00022876,3]
[349667520,1737363067543,-526.78,0.00022876,3]
[349667521,1737363067563,-564.99,0.00022876,3]
[349667522,1737363067579,-500.0,0.00022876,3]
[349667523,1737363067593,-1111.3,0.00022876,3]
[349667524,1737363067608,-500.0,0.00022876,3]
[349667525,1737363067622,-251.40651912,0.00022876,3]
[349667526,1737363067636,-500.0,0.00022876,3]
[349667527,1737363067651,-8374.84,0.00022876,3]
[349667528,1737363067665,-500.0,0.00022877,2]
[349667529,1737363067680,-500.0,0.00022877,2]
[349667530,1737363067695,-1327.84425432,0.0002288,2]
[349667531,1737363067711,-1002.1076059,0.00022921,2]
[349667532,1737363067743,-1000.21461386,0.00022921,2]
[349667533,1737363067768,-1000.0,0.00022921,2]
[349667534,1737363067790,-4878.67711728,0.00022959,2]
[349667535,1737363067811,-152.0,0.00022964,2]
[349667536,1737363067826,-152.0,0.00022964,2]
[349667537,1737363067842,-152.0,0.00022964,2]
[349667538,1737363067950,-152.0,0.00022964,2]
[349667539,1737363067962,-152.0,0.00022964,2]
[349667540,1737363067972,-152.0,0.00022964,2]
[349667541,1737363067981,-152.0,0.00022964,2]
[349667542,1737363067990,-152.0,0.00022964,2]
[349667543,1737363067999,-152.0,0.00022964,2]
[349667544,1737363068008,-152.0,0.00022964,2]
[349667545,1737363068018,-152.0,0.00022964,2]
[349667546,1737363068027,-152.0,0.00022964,2]
[349667547,1737363068037,-152.0,0.00022964,2]
[349667548,1737363068046,-152.0,0.00022964,2]
[349667549,1737363068057,-152.0,0.00022964,2]
[349667550,1737363068066,-152.0,0.00022964,2]
[349667551,1737363068075,-152.0,0.00022964,2]
[349667552,1737363068084,-152.0,0.00022964,2]
[349667553,1737363068093,-152.0,0.00022964,2]
[349667554,1737363068102,-152.0,0.00022964,2]
[349667555,1737363068112,-269.0,0.00022964,2]
[349667556,1737363068121,-7438.69753278,0.00023,2]
[349667557,1737363068130,-244.51503723,0.00023,2]
[349667558,1737363068139,-33596.20888918,0.00023,2]
[349667559,1737363068149,-500.0,0.00023,2]
[349667560,1737363068158,-500.0,0.00023,2]
[349667561,1737363068167,-500.0,0.00023,2]
[349667562,1737363068177,-500.0,0.00023,2]
[349667563,1737363068189,-500.0,0.00023,2]
[349667564,1737363068198,-500.0,0.00023,2]
[349667565,1737363068208,-500.0,0.00023,2]
[349667566,1737363068217,-500.0,0.00023,2]
[349667567,1737363068226,-500.0,0.00023,2]
[349667568,1737363068235,-500.0,0.00023,2]
[349667569,1737363068245,-500.0,0.00023,2]
[349667570,1737363068255,-500.0,0.00023,2]
[349667571,1737363068264,-500.0,0.00023,2]
[349667572,1737363068273,-500.0,0.00023,2]
[349667573,1737363068283,-500.0,0.00023,2]
[349667574,1737363068292,-500.0,0.00023,2]
[349667575,1737363068301,-512.2909752,0.00023,2]
[349667576,1737363068311,-1000.0,0.00023,23]
[349667577,1737363068320,-1000.0,0.00023,4]
[349667578,1737363068330,-2000.0,0.00023,7]
[349667579,1737363068339,-1296.78052452,0.00023,20]
[349667580,1737363068348,-7438.69753278,0.00023,3]
[349667581,1737363068358,-200.0,0.00023,2]
[349667582,1737363068368,-171.0,0.00023,2]
[349667583,1737363068377,-500.0,0.00023013,3]
[349667584,1737363068386,-500.0,0.00023013,3]
[349667585,1737363068395,-500.0,0.00023013,3]
[349667586,1737363068405,-500.0,0.00023013,3]
[349667587,1737363068414,-500.0,0.00023013,3]
[349667588,1737363068424,-160.35147207,0.00023013,3]
[349667589,1737363068434,-500.0,0.00023013,3]
[349667590,1737363068443,-500.0,0.00023013,3]
[349667591,1737363068452,-500.0,0.00023013,3]
[349667592,1737363068462,-1924.65,0.00023013,3]
[349667593,1737363068472,-500.0,0.00023013,3]
[349667594,1737363068483,-500.0,0.00023013,3]
[349667595,1737363068494,-500.0,0.00023013,3]
[349667596,1737363068504,-188.0,0.00023013,2]
[349667597,1737363068515,-500.0,0.00023013,3]